[Event "Live Chess"]
[Site "Chess.com"]
[Date "2023.09.16"]
[Round "-"]
[White "GabrielGGCF"]
[Black "AnthonyGabriel1"]
[Result "0-1"]
[WhiteElo "1432"]
[BlackElo "2181"]
[TimeControl "900+5"]
[EndTime "6:58:18 PDT"]
[Termination "AnthonyGabriel1 venceu por desistência"]

1. e4 {[%clk 0:15:03.5]} 1... d5 {[%clk 0:15:02.8]} 2. exd5 {[%clk 0:15:06.4]}
2... Nf6 {[%clk 0:15:07.3]} 3. Nc3 {[%clk 0:15:09.5]} 3... c6 {[%clk 0:15:11.3]}
4. dxc6 {[%clk 0:15:12.7]} 4... Nxc6 {[%clk 0:15:14.5]} 5. Bb5 {[%clk
0:15:15.7]} 5... Qb6 {[%clk 0:15:13.7]} 6. Qe2 {[%clk 0:15:07.7]} 6... Bg4
{[%clk 0:15:05.9]} 7. Bxc6+ {[%clk 0:15:02.9]} 7... Qxc6 {[%clk 0:15:08.9]} 8.
Qb5 {[%clk 0:15:00.1]} 8... O-O-O {[%clk 0:15:13.4]} 9. Qxc6+ {[%clk 0:15:02.6]}
9... bxc6 {[%clk 0:15:18.3]} 10. h3 {[%clk 0:15:02.9]} 10... Bf5 {[%clk
0:15:18.5]} 11. d3 {[%clk 0:15:04.1]} 11... e6 {[%clk 0:15:20.6]} 12. Bf4 {[%clk
0:15:05.3]} 12... Nd5 {[%clk 0:15:22.8]} 13. Nxd5 {[%clk 0:15:04.9]} 13... cxd5
{[%clk 0:15:26.1]} 14. Nf3 {[%clk 0:15:06]} 14... h6 {[%clk 0:15:24.4]} 15. O-O
{[%clk 0:15:00.7]} 15... Be7 {[%clk 0:15:06.5]} 16. Ne5 {[%clk 0:14:59.2]} 16...
Bd6 {[%clk 0:15:04.6]} 17. d4 {[%clk 0:14:40.1]} 17... f6 {[%clk 0:15:06.3]} 18.
Nf7 {[%clk 0:14:05.7]} 18... Bxf4 {[%clk 0:15:10.1]} 19. Nxh8 {[%clk 0:14:06.4]}
19... Rxh8 {[%clk 0:15:15]} 20. c3 {[%clk 0:14:02.7]} 20... Kd7 {[%clk
0:15:17.6]} 21. g3 {[%clk 0:14:06.7]} 21... Bxh3 {[%clk 0:15:18]} 22. gxf4
{[%clk 0:14:07.9]} 22... Bxf1 {[%clk 0:15:22]} 23. Kxf1 {[%clk 0:14:12.4]} 23...
Rb8 {[%clk 0:15:25.8]} 24. Rb1 {[%clk 0:14:14.7]} 24... Kc6 {[%clk 0:15:12.3]}
25. Ke2 {[%clk 0:14:17.8]} 25... h5 {[%clk 0:14:56]} 26. Kf3 {[%clk 0:14:20.9]}
26... g5 {[%clk 0:14:58.5]} 27. b3 {[%clk 0:14:07.9]} 27... Rg8 {[%clk
0:14:53.7]} 28. Rg1 {[%clk 0:14:06.8]} 28... g4+ {[%clk 0:14:57.6]} 29. Ke3
{[%clk 0:14:02.6]} 29... h4 {[%clk 0:14:58.5]} 30. Rh1 {[%clk 0:13:51.5]} 30...
h3 {[%clk 0:14:58.5]} 31. f3 {[%clk 0:13:50.2]} 31... g3 {[%clk 0:15:02.4]} 32.
Rxh3 {[%clk 0:13:53.1]} 32... g2 {[%clk 0:15:07]} 0-1

[Event "Live Chess"]
[Site "Chess.com"]
[Date "2023.09.16"]
[Round "-"]
[White "Ggavioli"]
[Black "daniel-drummond"]
[Result "0-1"]
[WhiteElo "1553"]
[BlackElo "1550"]
[TimeControl "900+5"]
[EndTime "6:58:41 PDT"]
[Termination "daniel-drummond venceu por tempo"]

1. e4 {[%clk 0:15:01.4]} 1... e5 {[%clk 0:15:04.2]} 2. Nf3 {[%clk 0:15:04.9]}
2... Nc6 {[%clk 0:15:07.6]} 3. Bb5 {[%clk 0:15:08.6]} 3... a6 {[%clk 0:15:08.8]}
4. Bxc6 {[%clk 0:15:12.5]} 4... dxc6 {[%clk 0:15:13.3]} 5. Nc3 {[%clk
0:15:16.2]} 5... Nf6 {[%clk 0:15:12]} 6. Nxe5 {[%clk 0:15:18.1]} 6... Bd6 {[%clk
0:15:13.4]} 7. Nf3 {[%clk 0:15:15.3]} 7... Bg4 {[%clk 0:15:17.7]} 8. h3 {[%clk
0:15:17.5]} 8... Bh5 {[%clk 0:15:19.2]} 9. d3 {[%clk 0:15:20.7]} 9... Qe7 {[%clk
0:15:19.1]} 10. Bg5 {[%clk 0:15:24.2]} 10... h6 {[%clk 0:15:19.3]} 11. Bxf6
{[%clk 0:15:28.4]} 11... Qxf6 {[%clk 0:15:22.1]} 12. e5 {[%clk 0:14:47.3]} 12...
Bxe5 {[%clk 0:15:24.2]} 13. Ne4 {[%clk 0:14:47.2]} 13... Qe7 {[%clk 0:15:13.5]}
14. c3 {[%clk 0:14:34.6]} 14... f5 {[%clk 0:15:15.1]} 15. g4 {[%clk 0:12:18.4]}
15... fxe4 {[%clk 0:15:16.6]} 16. gxh5 {[%clk 0:12:20.7]} 16... exf3 {[%clk
0:15:20.4]} 17. Qxf3 {[%clk 0:12:19.8]} 17... Rf8 {[%clk 0:15:20.7]} 18. Qe4
{[%clk 0:12:10.4]} 18... O-O-O {[%clk 0:15:19.1]} 19. f3 {[%clk 0:10:43.9]}
19... Rde8 {[%clk 0:15:03.6]} 20. Qg4+ {[%clk 0:10:01.2]} 20... Kb8 {[%clk
0:15:05]} 21. O-O-O {[%clk 0:10:00.6]} 21... Rf4 {[%clk 0:15:01.5]} 22. Qg2
{[%clk 0:09:41]} 22... Bf6 {[%clk 0:14:56.1]} 23. Qg3 {[%clk 0:09:27.4]} 23...
Bg5 {[%clk 0:14:57.6]} 24. Kb1 {[%clk 0:08:48.2]} 24... Qf7 {[%clk 0:14:57.3]}
25. Rde1 {[%clk 0:08:19.9]} 25... Rxe1+ {[%clk 0:14:58.9]} 26. Rxe1 {[%clk
0:08:20]} 26... Rxf3 {[%clk 0:15:02.1]} 27. Qe5 {[%clk 0:07:13]} 27... Rxd3
{[%clk 0:14:35]} 28. Qe4 {[%clk 0:07:10.5]} 28... Rxh3 {[%clk 0:14:27.4]} 29.
Qg2 {[%clk 0:06:45.5]} 29... Qf5+ {[%clk 0:14:17.3]} 30. Ka1 {[%clk 0:06:42.2]}
30... Rxh5 {[%clk 0:14:05.1]} 31. Qg1 {[%clk 0:06:42.2]} 31... b6 {[%clk
0:13:52.2]} 32. a3 {[%clk 0:05:49.7]} 32... Bf6 {[%clk 0:13:33.1]} 33. Qe3
{[%clk 0:05:28.3]} 33... Qd5 {[%clk 0:13:28.7]} 34. c4 {[%clk 0:05:22.8]} 34...
Qe5 {[%clk 0:13:16.1]} 35. Qd2 {[%clk 0:04:59.8]} 35... Qh2 {[%clk 0:13:00.3]}
36. Qb4 {[%clk 0:04:32.6]} 36... a5 {[%clk 0:12:44.4]} 37. Qb3 {[%clk 0:04:32]}
37... a4 {[%clk 0:12:47.3]} 38. Qb4 {[%clk 0:04:33.9]} 38... c5 {[%clk
0:12:49.6]} 39. Qb5 {[%clk 0:04:31.7]} 39... Kb7 {[%clk 0:12:50.5]} 40. Ka2
{[%clk 0:03:15.8]} 40... c6 {[%clk 0:12:51.1]} 41. Re7+ {[%clk 0:02:58.1]} 41...
Bxe7 {[%clk 0:12:51.7]} 42. Qxa4 {[%clk 0:03:01.5]} 42... Bf6 {[%clk 0:12:50.7]}
43. Qb3 {[%clk 0:03:02.9]} 43... Rh3 {[%clk 0:12:51.4]} 44. Kb1 {[%clk
0:02:03.8]} 44... Rxb3 {[%clk 0:12:53.1]} 45. Kc1 {[%clk 0:00:53.3]} 45... Qxb2+
{[%clk 0:12:54.1]} 46. Kd1 {[%clk 0:00:20.7]} 46... Rh3 {[%clk 0:12:59]} 0-1

[Event "Live Chess"]
[Site "Chess.com"]
[Date "2023.09.16"]
[Round "-"]
[White "gu1c0rrea"]
[Black "migu345"]
[Result "1-0"]
[WhiteElo "835"]
[BlackElo "992"]
[TimeControl "900+5"]
[EndTime "6:58:43 PDT"]
[Termination "gu1c0rrea venceu por desistência"]

1. e4 {[%clk 0:15:04.4]} 1... e6 {[%clk 0:15:02.9]} 2. d4 {[%clk 0:15:08.1]}
2... d5 {[%clk 0:15:07.8]} 3. Nc3 {[%clk 0:15:11.4]} 3... c5 {[%clk 0:15:09.1]}
4. Be3 {[%clk 0:15:10.9]} 4... Nc6 {[%clk 0:15:10.8]} 5. exd5 {[%clk 0:15:10.6]}
5... exd5 {[%clk 0:15:12.4]} 6. dxc5 {[%clk 0:15:03.2]} 6... Nf6 {[%clk
0:14:56.7]} 7. Bb5 {[%clk 0:14:22.8]} 7... Bf5 {[%clk 0:14:49.7]} 8. Nf3 {[%clk
0:13:57.3]} 8... a6 {[%clk 0:14:51.1]} 9. Bxc6+ {[%clk 0:13:51]} 9... bxc6
{[%clk 0:14:56]} 10. Ne5 {[%clk 0:13:45.1]} 10... Qa5 {[%clk 0:14:55]} 11. Nxc6
{[%clk 0:13:40.3]} 11... Qc7 {[%clk 0:14:37.8]} 12. Nb4 {[%clk 0:13:32.2]} 12...
Bxc5 {[%clk 0:14:39.6]} 13. Bxc5 {[%clk 0:13:33]} 13... Qxc5 {[%clk 0:14:44.5]}
14. Nd3 {[%clk 0:13:29.3]} 14... Bxd3 {[%clk 0:14:44.3]} 15. Qxd3 {[%clk
0:13:32.8]} 15... O-O {[%clk 0:14:46.3]} 16. O-O {[%clk 0:13:35.6]} 16... Rfd8
{[%clk 0:14:43.5]} 17. Rfe1 {[%clk 0:13:23.2]} 17... d4 {[%clk 0:14:46.3]} 18.
Ne4 {[%clk 0:13:17.8]} 18... Nxe4 {[%clk 0:14:49.2]} 19. Rxe4 {[%clk 0:13:18.8]}
19... Rab8 {[%clk 0:14:40.8]} 20. Qxa6 {[%clk 0:12:57.1]} 20... Rxb2 {[%clk
0:14:28.5]} 21. Rae1 {[%clk 0:12:33.8]} 21... h6 {[%clk 0:14:10.4]} 22. Qd3
{[%clk 0:12:30.4]} 22... Rxc2 {[%clk 0:14:08]} 23. Re8+ {[%clk 0:12:28.6]} 23...
Rxe8 {[%clk 0:14:07.4]} 24. Rxe8+ {[%clk 0:12:29.3]} 1-0

[Event "Live Chess"]
[Site "Chess.com"]
[Date "2023.09.16"]
[Round "-"]
[White "Mozart5501"]
[Black "Francisco_Ferrari"]
[Result "0-1"]
[WhiteElo "1794"]
[BlackElo "2172"]
[TimeControl "900+5"]
[EndTime "6:59:45 PDT"]
[Termination "Francisco_Ferrari venceu por desistência"]

1. e4 {[%clk 0:15:03.5]} 1... c5 {[%clk 0:15:02.3]} 2. Nf3 {[%clk 0:15:07]} 2...
d6 {[%clk 0:15:05.5]} 3. d4 {[%clk 0:15:07]} 3... cxd4 {[%clk 0:15:09.4]} 4.
Nxd4 {[%clk 0:15:08.7]} 4... Nf6 {[%clk 0:15:13.1]} 5. Nc3 {[%clk 0:15:12.8]}
5... a6 {[%clk 0:15:16.8]} 6. Bc4 {[%clk 0:15:17]} 6... e6 {[%clk 0:15:19.7]} 7.
Bb3 {[%clk 0:15:20.9]} 7... b5 {[%clk 0:15:23]} 8. O-O {[%clk 0:15:23.3]} 8...
Be7 {[%clk 0:15:25.6]} 9. Re1 {[%clk 0:15:26.2]} 9... O-O {[%clk 0:15:28.7]} 10.
a3 {[%clk 0:15:23.5]} 10... Bb7 {[%clk 0:15:31.1]} 11. Kh1 {[%clk 0:15:06.3]}
11... Nbd7 {[%clk 0:15:30.2]} 12. f4 {[%clk 0:15:04]} 12... Nc5 {[%clk
0:15:33.7]} 13. Qf3 {[%clk 0:14:58.6]} 13... Qc7 {[%clk 0:15:14.7]} 14. Ba2
{[%clk 0:14:41.8]} 14... Rac8 {[%clk 0:13:54.2]} 15. Bd2 {[%clk 0:14:25.4]}
15... Ncd7 {[%clk 0:13:37]} 16. Rac1 {[%clk 0:13:53.5]} 16... Nb6 {[%clk
0:13:38.1]} 17. Qh3 {[%clk 0:13:40.2]} 17... Nc4 {[%clk 0:13:25]} 18. Bxc4
{[%clk 0:13:40.2]} 18... Qxc4 {[%clk 0:13:27.2]} 19. Qe3 {[%clk 0:13:32.3]}
19... Ng4 {[%clk 0:13:09.3]} 20. b3 {[%clk 0:12:28.9]} 20... Nxe3 {[%clk
0:12:36.6]} 21. bxc4 {[%clk 0:12:28.6]} 21... Nxc4 {[%clk 0:12:41.5]} 22. Be3
{[%clk 0:12:17]} 22... Nxa3 {[%clk 0:12:30.8]} 23. Bd2 {[%clk 0:12:08.3]} 23...
Nc4 {[%clk 0:12:34]} 24. Nb1 {[%clk 0:11:58.8]} 24... Bf6 {[%clk 0:12:26]} 25.
Nb3 {[%clk 0:11:19.6]} 25... Nxd2 {[%clk 0:12:22.6]} 26. N1xd2 {[%clk
0:11:19.6]} 26... Bc3 {[%clk 0:12:20.5]} 27. Re2 {[%clk 0:11:18.6]} 27... a5
{[%clk 0:12:22.5]} 28. Rb1 {[%clk 0:11:12.7]} 28... a4 {[%clk 0:12:15.6]} 29.
Nc1 {[%clk 0:11:12.4]} 29... b4 {[%clk 0:12:01.6]} 30. Na2 {[%clk 0:11:15.3]}
30... Ba6 {[%clk 0:12:03.9]} 31. Rf2 {[%clk 0:11:05]} 31... Bd4 {[%clk 0:12:02]}
32. Rf3 {[%clk 0:10:56.3]} 32... Rxc2 {[%clk 0:12:02.2]} 0-1

[Event "Live Chess"]
[Site "Chess.com"]
[Date "2023.09.16"]
[Round "-"]
[White "Froidastics"]
[Black "P3treis"]
[Result "1-0"]
[WhiteElo "1974"]
[BlackElo "915"]
[TimeControl "900+5"]
[EndTime "7:01:02 PDT"]
[Termination "Froidastics venceu por xeque-mate"]

1. e4 {[%clk 0:15:03.9]} 1... c5 {[%clk 0:15:02.2]} 2. Nf3 {[%clk 0:15:08]} 2...
d6 {[%clk 0:15:04.9]} 3. d4 {[%clk 0:15:12.7]} 3... cxd4 {[%clk 0:15:09.5]} 4.
Nxd4 {[%clk 0:15:17.6]} 4... Nf6 {[%clk 0:15:13.3]} 5. Nc3 {[%clk 0:15:21.7]}
5... e6 {[%clk 0:15:17.2]} 6. Be3 {[%clk 0:15:26.1]} 6... Be7 {[%clk 0:15:18.8]}
7. f3 {[%clk 0:15:30.7]} 7... Nc6 {[%clk 0:15:11.7]} 8. Qd2 {[%clk 0:15:32.6]}
8... a6 {[%clk 0:15:15.3]} 9. g4 {[%clk 0:15:35]} 9... Nxd4 {[%clk 0:14:59.9]}
10. Bxd4 {[%clk 0:15:38.2]} 10... e5 {[%clk 0:15:01.8]} 11. Be3 {[%clk
0:15:41.9]} 11... b5 {[%clk 0:14:44.9]} 12. O-O-O {[%clk 0:15:39.3]} 12... Bd7
{[%clk 0:14:12]} 13. h4 {[%clk 0:15:39.9]} 13... b4 {[%clk 0:13:53.1]} 14. Nd5
{[%clk 0:15:38.7]} 14... Nxd5 {[%clk 0:13:56.3]} 15. exd5 {[%clk 0:15:30.5]}
15... Qa5 {[%clk 0:12:38.7]} 16. Kb1 {[%clk 0:15:28.8]} 16... Bd8 {[%clk
0:11:27.1]} 17. f4 {[%clk 0:15:08.3]} 17... b3 {[%clk 0:10:22.6]} 18. cxb3
{[%clk 0:15:02.6]} 18... Qxd2 {[%clk 0:10:18.9]} 19. Rxd2 {[%clk 0:14:43.6]}
19... a5 {[%clk 0:09:51.3]} 20. f5 {[%clk 0:14:33.3]} 20... a4 {[%clk
0:09:44.9]} 21. bxa4 {[%clk 0:14:32]} 21... Bxa4 {[%clk 0:09:33.7]} 22. Bd3
{[%clk 0:14:28.6]} 22... Ba5 {[%clk 0:09:19]} 23. Rg2 {[%clk 0:14:22.1]} 23...
Rb8 {[%clk 0:09:02.1]} 24. g5 {[%clk 0:14:09]} 24... Bc3 {[%clk 0:09:02.8]} 25.
b3 {[%clk 0:13:34.7]} 25... Rb4 {[%clk 0:07:52.7]} 26. Kc2 {[%clk 0:13:30.6]}
26... Bd4 {[%clk 0:07:13.4]} 27. Bxd4 {[%clk 0:13:28.9]} 27... Rxd4 {[%clk
0:06:34.5]} 28. bxa4 {[%clk 0:13:31.8]} 28... O-O {[%clk 0:06:37.2]} 29. Rg3
{[%clk 0:13:04.7]} 29... Rc8+ {[%clk 0:06:28.9]} 30. Kd2 {[%clk 0:12:52.3]}
30... Rxa4 {[%clk 0:06:05.8]} 31. Bb1 {[%clk 0:12:40.7]} 31... Rd4+ {[%clk
0:05:16.4]} 32. Rd3 {[%clk 0:12:39.9]} 32... Rg4 {[%clk 0:04:59.3]} 33. Re3
{[%clk 0:11:58.9]} 33... Rg2+ {[%clk 0:04:46.2]} 34. Re2 {[%clk 0:12:00.9]}
34... Rg4 {[%clk 0:04:40.4]} 35. Rc1 {[%clk 0:11:52]} 35... Rd4+ {[%clk
0:04:37.5]} 36. Bd3 {[%clk 0:11:45.7]} 36... Ra8 {[%clk 0:04:33.5]} 37. Rc2
{[%clk 0:11:28.4]} 37... Rxh4 {[%clk 0:04:12.1]} 38. Re4 {[%clk 0:11:11.9]}
38... Rh2+ {[%clk 0:04:05.3]} 39. Be2 {[%clk 0:11:07.8]} 39... Rh5 {[%clk
0:03:58.7]} 40. Rec4 {[%clk 0:11:06.1]} 40... Kf8 {[%clk 0:03:32.7]} 41. Bxh5
{[%clk 0:11:08.4]} 41... g6 {[%clk 0:03:34.2]} 42. Rc8+ {[%clk 0:11:09.7]} 42...
Rxc8 {[%clk 0:03:37.1]} 43. Rxc8+ {[%clk 0:11:13.6]} 43... Ke7 {[%clk
0:03:40.6]} 44. f6+ {[%clk 0:11:15.5]} 44... Kd7 {[%clk 0:03:44.4]} 45. Bg4#
{[%clk 0:11:20.2]} 1-0

[Event "Live Chess"]
[Site "Chess.com"]
[Date "2023.09.16"]
[Round "-"]
[White "mary260210"]
[Black "Edson_Zarnelli"]
[Result "1-0"]
[WhiteElo "860"]
[BlackElo "754"]
[TimeControl "900+5"]
[EndTime "7:02:22 PDT"]
[Termination "mary260210 venceu por desistência"]

1. d4 {[%clk 0:15:03.4]} 1... d5 {[%clk 0:15:03.4]} 2. Nc3 {[%clk 0:15:06.6]}
2... Nf6 {[%clk 0:15:04]} 3. Nf3 {[%clk 0:15:09.7]} 3... Nc6 {[%clk 0:14:58.7]}
4. Bg5 {[%clk 0:15:12.2]} 4... Ne4 {[%clk 0:14:56.9]} 5. Nxe4 {[%clk 0:15:09.7]}
5... dxe4 {[%clk 0:15:00.8]} 6. Ne5 {[%clk 0:15:09.6]} 6... Nxe5 {[%clk
0:15:02.6]} 7. dxe5 {[%clk 0:15:11.4]} 7... Bf5 {[%clk 0:14:43.7]} 8. Qd2 {[%clk
0:14:57.8]} 8... f6 {[%clk 0:14:39.6]} 9. Bf4 {[%clk 0:14:59]} 9... Qd7 {[%clk
0:14:26.2]} 10. exf6 {[%clk 0:14:58.2]} 10... exf6 {[%clk 0:14:28.4]} 11. O-O-O
{[%clk 0:14:54.4]} 11... Qxd2+ {[%clk 0:14:29.3]} 12. Rxd2 {[%clk 0:14:54.2]}
12... Bb4 {[%clk 0:14:30.8]} 13. Rd4 {[%clk 0:14:49.7]} 13... Bc5 {[%clk
0:14:29.9]} 14. Rd5 {[%clk 0:14:50.3]} 14... g5 {[%clk 0:14:07.4]} 15. Bxc7
{[%clk 0:14:41.6]} 15... Rc8 {[%clk 0:14:04.1]} 16. Rxc5 {[%clk 0:14:20.6]}
16... Bd7 {[%clk 0:13:50.7]} 17. f3 {[%clk 0:14:15.5]} 17... b6 {[%clk 0:13:54]}
18. Rc3 {[%clk 0:14:15.2]} 18... exf3 {[%clk 0:13:51.3]} 19. exf3 {[%clk
0:14:16.8]} 19... g4 {[%clk 0:13:47.1]} 20. fxg4 {[%clk 0:14:19.1]} 20... Bxg4
{[%clk 0:13:51.6]} 21. Ba6 {[%clk 0:14:16.2]} 21... Rxc7 {[%clk 0:13:41]} 22.
Rxc7 {[%clk 0:14:18.8]} 22... Kd8 {[%clk 0:13:42]} 23. Rxa7 {[%clk 0:14:22.8]}
23... Bc8 {[%clk 0:13:41.7]} 24. Bxc8 {[%clk 0:14:25.3]} 24... Kxc8 {[%clk
0:13:45.8]} 25. Ra6 {[%clk 0:14:27.8]} 1-0

[Event "Live Chess"]
[Site "Chess.com"]
[Date "2023.09.16"]
[Round "-"]
[White "KauaShelby015"]
[Black "lucasbezerraja"]
[Result "1/2-1/2"]
[WhiteElo "1268"]
[BlackElo "1804"]
[TimeControl "900+5"]
[EndTime "7:02:55 PDT"]
[Termination "Partida empatada por acordo"]

1. e4 {[%clk 0:15:03.9]} 1... c5 {[%clk 0:15:04.1]} 2. Nf3 {[%clk 0:15:07.7]}
2... d6 {[%clk 0:15:08.6]} 3. d4 {[%clk 0:15:09.8]} 3... cxd4 {[%clk 0:15:13.5]}
4. Nxd4 {[%clk 0:15:13.8]} 4... Nf6 {[%clk 0:15:17.4]} 5. Nc3 {[%clk 0:15:17.4]}
5... g6 {[%clk 0:15:21.2]} 6. Be3 {[%clk 0:15:11.7]} 6... Bg7 {[%clk 0:15:21.9]}
7. Qd2 {[%clk 0:15:15]} 7... O-O {[%clk 0:15:24.9]} 8. Bh6 {[%clk 0:15:13.7]}
8... Qb6 {[%clk 0:15:11.8]} 9. Bxg7 {[%clk 0:15:05.8]} 9... Kxg7 {[%clk
0:15:16.7]} 10. O-O-O {[%clk 0:15:04.5]} 10... Nbd7 {[%clk 0:15:07.4]} 11. f4
{[%clk 0:15:06.7]} 11... Nc5 {[%clk 0:15:06.7]} 12. e5 {[%clk 0:15:05.8]} 12...
Nfe4 {[%clk 0:15:10]} 13. Nxe4 {[%clk 0:15:05]} 13... Nxe4 {[%clk 0:15:14.9]}
14. Qe3 {[%clk 0:14:43.1]} 14... d5 {[%clk 0:14:59.3]} 15. h4 {[%clk 0:14:24.9]}
15... Bg4 {[%clk 0:14:52.5]} 16. Rd3 {[%clk 0:14:01.5]} 16... Nc5 {[%clk
0:13:43.1]} 17. Rc3 {[%clk 0:13:23.4]} 17... Rac8 {[%clk 0:13:39.7]} 18. Bd3
{[%clk 0:12:39.2]} 18... Nxd3+ {[%clk 0:13:22.8]} 19. Rxd3 {[%clk 0:12:22]}
19... Rc4 {[%clk 0:12:27.5]} 20. b3 {[%clk 0:11:59.4]} 20... Rc7 {[%clk
0:12:18.8]} 21. Rc3 {[%clk 0:10:58.9]} 21... Rfc8 {[%clk 0:12:10.3]} 22. Rxc7
{[%clk 0:11:00.6]} 22... Rxc7 {[%clk 0:12:15.2]} 23. Kb2 {[%clk 0:09:51.9]}
23... Kg8 {[%clk 0:11:13.8]} 24. Re1 {[%clk 0:09:12.4]} 24... Qc5 {[%clk
0:10:20.4]} 25. g3 {[%clk 0:08:40.4]} 25... Bf5 {[%clk 0:10:12.4]} 26. Qd2
{[%clk 0:07:47.8]} 1/2-1/2

[Event "Live Chess"]
[Site "Chess.com"]
[Date "2023.09.16"]
[Round "-"]
[White "Mika635Isa"]
[Black "Abofado"]
[Result "1-0"]
[WhiteElo "532"]
[BlackElo "582"]
[TimeControl "900+5"]
[EndTime "7:03:23 PDT"]
[Termination "Mika635Isa venceu por xeque-mate"]

1. e4 {[%clk 0:14:59.3]} 1... c6 {[%clk 0:15:04.3]} 2. d4 {[%clk 0:15:00.1]}
2... d5 {[%clk 0:15:05.2]} 3. Nc3 {[%clk 0:14:58.5]} 3... dxe4 {[%clk 0:15:06]}
4. Nxe4 {[%clk 0:14:58.5]} 4... e5 {[%clk 0:15:08.5]} 5. c3 {[%clk 0:14:55.1]}
5... exd4 {[%clk 0:15:11.2]} 6. cxd4 {[%clk 0:14:58.8]} 6... Nf6 {[%clk
0:14:57.6]} 7. Bg5 {[%clk 0:14:58.2]} 7... h6 {[%clk 0:15:00.8]} 8. Bxf6 {[%clk
0:14:50]} 8... gxf6 {[%clk 0:15:01.9]} 9. Nf3 {[%clk 0:14:15.2]} 9... f5 {[%clk
0:14:59.2]} 10. Nc3 {[%clk 0:13:58.2]} 10... f4 {[%clk 0:14:46.2]} 11. Bc4
{[%clk 0:13:44.9]} 11... Bg4 {[%clk 0:14:31.4]} 12. O-O {[%clk 0:13:38.4]} 12...
Bxf3 {[%clk 0:14:28.8]} 13. Qxf3 {[%clk 0:13:40.8]} 13... Nd7 {[%clk 0:14:19.7]}
14. Qxf4 {[%clk 0:13:40.4]} 14... Nf6 {[%clk 0:14:02.6]} 15. Ne4 {[%clk
0:13:21.9]} 15... Qxd4 {[%clk 0:14:02.6]} 16. Rac1 {[%clk 0:13:02.9]} 16... Nxe4
{[%clk 0:13:59.8]} 17. Rfe1 {[%clk 0:12:53.4]} 17... Qxf2+ {[%clk 0:13:58.7]}
18. Qxf2 {[%clk 0:12:53.5]} 18... O-O-O {[%clk 0:13:56.2]} 19. Rxe4 {[%clk
0:12:49.3]} 19... b6 {[%clk 0:13:57.3]} 20. Bxf7 {[%clk 0:12:47.6]} 20... Bb4
{[%clk 0:13:52.2]} 21. Rxb4 {[%clk 0:12:36.6]} 21... Rhf8 {[%clk 0:13:54.1]} 22.
Qg3 {[%clk 0:12:20.8]} 22... Rxf7 {[%clk 0:13:54.7]} 23. Qg4+ {[%clk 0:12:19.3]}
23... Kb8 {[%clk 0:13:57.2]} 24. h3 {[%clk 0:12:10.9]} 24... c5 {[%clk
0:13:48.1]} 25. Re4 {[%clk 0:12:09]} 25... Rh7 {[%clk 0:13:31.7]} 26. Qg6 {[%clk
0:11:55.4]} 26... Rdh8 {[%clk 0:13:24.3]} 27. Re8+ {[%clk 0:11:55.1]} 27... Rxe8
{[%clk 0:13:27.2]} 28. Qxe8+ {[%clk 0:11:58.9]} 28... Kb7 {[%clk 0:13:29.2]} 29.
Re1 {[%clk 0:11:55.9]} 29... Rc7 {[%clk 0:13:11.5]} 30. Re7 {[%clk 0:11:56.5]}
30... Rxe7 {[%clk 0:13:12.6]} 31. Qxe7+ {[%clk 0:12:00.1]} 31... Ka6 {[%clk
0:13:17]} 32. g4 {[%clk 0:11:58.3]} 32... Kb5 {[%clk 0:13:19.5]} 33. h4 {[%clk
0:11:57.5]} 33... Kc4 {[%clk 0:13:22.1]} 34. g5 {[%clk 0:12:01.1]} 34... hxg5
{[%clk 0:13:25.7]} 35. hxg5 {[%clk 0:12:05.3]} 35... Kd3 {[%clk 0:13:30]} 36.
Qxa7 {[%clk 0:12:07.9]} 36... c4 {[%clk 0:13:30.9]} 37. Qxb6 {[%clk 0:12:11.8]}
37... Kc2 {[%clk 0:13:34.8]} 38. b3 {[%clk 0:12:12.8]} 38... c3 {[%clk
0:13:38.1]} 39. Qf2+ {[%clk 0:12:08.9]} 39... Kb1 {[%clk 0:13:40.8]} 40. g6
{[%clk 0:12:01.7]} 40... c2 {[%clk 0:13:44.1]} 41. Qxc2+ {[%clk 0:12:05.1]}
41... Kxc2 {[%clk 0:13:45.5]} 42. g7 {[%clk 0:12:09.2]} 42... Kb2 {[%clk
0:13:49.5]} 43. g8=Q {[%clk 0:12:12.9]} 43... Kxa2 {[%clk 0:13:51.9]} 44. Qg2+
{[%clk 0:12:15.7]} 44... Kxb3 {[%clk 0:13:56.2]} 45. Kf1 {[%clk 0:12:19.8]}
45... Kc4 {[%clk 0:14:00.2]} 46. Ke2 {[%clk 0:12:23.7]} 46... Kd4 {[%clk
0:14:03.6]} 47. Qf3 {[%clk 0:12:27.7]} 47... Kc4 {[%clk 0:14:07.5]} 48. Ke3
{[%clk 0:12:31.8]} 48... Kc3 {[%clk 0:14:11.3]} 49. Qe4 {[%clk 0:12:35.6]} 49...
Kb3 {[%clk 0:14:15.3]} 50. Kd4 {[%clk 0:12:30.3]} 50... Kb2 {[%clk 0:14:18.6]}
51. Qd3 {[%clk 0:12:31]} 51... Kc1 {[%clk 0:14:22.1]} 52. Qe3+ {[%clk
0:12:30.7]} 52... Kc2 {[%clk 0:14:25.7]} 53. Qe4+ {[%clk 0:12:32.6]} 53... Kb3
{[%clk 0:14:28.6]} 54. Kd3 {[%clk 0:12:35.8]} 54... Kb2 {[%clk 0:14:32.5]} 55.
Kc4 {[%clk 0:12:38.9]} 55... Kc1 {[%clk 0:14:34.6]} 56. Kc3 {[%clk 0:12:42.8]}
56... Kd1 {[%clk 0:14:38.3]} 57. Qc2+ {[%clk 0:12:44.4]} 57... Ke1 {[%clk
0:14:41.4]} 58. Kd3 {[%clk 0:12:47.7]} 58... Kf1 {[%clk 0:14:44.3]} 59. Ke3
{[%clk 0:12:51.3]} 59... Ke1 {[%clk 0:14:47.1]} 60. Qe2# {[%clk 0:12:54.7]} 1-0

[Event "Live Chess"]
[Site "Chess.com"]
[Date "2023.09.16"]
[Round "-"]
[White "abaakate"]
[Black "xadrecarloso"]
[Result "0-1"]
[WhiteElo "1916"]
[BlackElo "957"]
[TimeControl "900+5"]
[EndTime "7:03:33 PDT"]
[Termination "xadrecarloso venceu por xeque-mate"]

1. d4 {[%clk 0:15:03.6]} 1... d6 {[%clk 0:14:59.1]} 2. c4 {[%clk 0:15:06.3]}
2... c5 {[%clk 0:14:59.9]} 3. dxc5 {[%clk 0:15:09]} 3... dxc5 {[%clk 0:15:02.5]}
4. Qxd8+ {[%clk 0:15:13.9]} 4... Kxd8 {[%clk 0:15:06.3]} 5. Nf3 {[%clk
0:15:14.5]} 5... Nc6 {[%clk 0:15:06.8]} 6. Ng5 {[%clk 0:15:15.5]} 6... Ke8
{[%clk 0:15:08.1]} 7. Nc3 {[%clk 0:15:15.1]} 7... Bf5 {[%clk 0:14:56.6]} 8. Nd5
{[%clk 0:15:06]} 8... Rc8 {[%clk 0:14:38.4]} 9. e4 {[%clk 0:15:06.2]} 9... Nd4
{[%clk 0:14:36.7]} 10. exf5 {[%clk 0:14:35.6]} 10... Nc2+ {[%clk 0:14:39.2]} 11.
Kd2 {[%clk 0:14:38]} 11... Nxa1 {[%clk 0:14:43]} 12. b3 {[%clk 0:14:37.5]} 12...
Rd8 {[%clk 0:14:46]} 13. Kc3 {[%clk 0:14:39.9]} 13... h6 {[%clk 0:14:41.8]} 14.
Nc7+ {[%clk 0:14:36.1]} 14... Kd7 {[%clk 0:14:36.4]} 15. Nxf7 {[%clk 0:14:40.1]}
15... Kxc7 {[%clk 0:14:37.4]} 16. Nxh8 {[%clk 0:14:43.6]} 16... g6 {[%clk
0:13:57.6]} 17. Nxg6 {[%clk 0:12:11]} 17... Bg7+ {[%clk 0:14:00.1]} 18. Ne5
{[%clk 0:11:59.4]} 18... Bxe5# {[%clk 0:14:01.9]} 0-1